bitfinex-derivatives/quotes_BTCF0:USTF0_20250828
["timestamp","ask_amount","ask_price","bid_price","bid_amount"]
[1756369116410,1.72198902,113220.0,113210.0,0.29039978]
[1756369116711,1.72198902,113220.0,113210.0,0.24474978]
[1756369117809,1.72198902,113220.0,113210.0,0.35959978]
[1756369118511,1.86844902,113220.0,113210.0,0.35959978]
[1756369120010,1.18352902,113220.0,113210.0,1.08896004]
[1756369120209,1.08115902,113220.0,113210.0,1.04896004]
[1756369121008,0.21146902,113220.0,113210.0,1.65976004]
[1756369121516,1.08111902,113220.0,113210.0,1.65976004]
[1756369121713,1.03698902,113220.0,113210.0,1.65976004]
[1756369121914,1.08111902,113220.0,113210.0,1.65976004]
[1756369122219,1.03698902,113220.0,113210.0,1.65976004]
[1756369122414,1.01652902,113220.0,113210.0,1.65976004]
[1756369122614,1.08114902,113220.0,113210.0,1.65976004]
[1756369122817,0.02611841,113220.0,113210.0,1.65976004]
[1756369124024,0.02611841,113220.0,113210.0,2.48524004]
[1756369127318,0.93415,113240.0,113220.0,0.088316]
[1756369127620,1.03162,113240.0,113230.0,1.12602016]
[1756369127814,1.07161,113240.0,113230.0,1.20602016]
[1756369128015,1.07161,113240.0,113230.0,1.14602016]
[1756369128421,1.03162,113240.0,113230.0,1.48602016]
[1756369128817,1.03262,113240.0,113230.0,1.48602016]
[1756369129421,0.92387,113240.0,113230.0,1.48602016]
[1756369129620,0.89863,113240.0,113230.0,1.48602016]
[1756369129917,1.00838,113240.0,113230.0,1.12602016]
[1756369130220,0.22297,113240.0,113230.0,1.45602016]
[1756369130421,0.22297,113240.0,113230.0,1.12602016]
[1756369130620,0.22297,113240.0,113230.0,1.07590571]
[1756369130621,0.24821,113240.0,113230.0,1.07590571]
[1756369130817,0.24721,113240.0,113230.0,1.44602016]
[1756369131723,0.24621,113240.0,113230.0,1.44602016]
[1756369133529,0.24621,113240.0,113230.0,1.07590571]
[1756369133819,0.60701,113240.0,113230.0,0.39510571]
[1756369134023,1.22712445,113240.0,113230.0,0.22140571]
[1756369134424,1.22712445,113240.0,113230.0,0.13755571]
[1756369134818,0.24621,113230.0,113220.0,0.3002116]
[1756369135015,1.44983505,113230.0,113220.0,0.28025741]
[1756369135216,1.44983505,113230.0,113220.0,0.32590741]
[1756369135422,1.44983505,113230.0,113220.0,0.39510741]
[1756369136126,1.44983505,113230.0,113220.0,0.49510741]
[1756369139327,1.47667562,113230.0,113220.0,0.49510741]
[1756369140428,1.44983505,113230.0,113220.0,0.49510741]
[1756369140625,1.47676966,113230.0,113220.0,1.11522186]
[1756369141023,1.00479505,113230.0,113220.0,1.72602186]
[1756369141223,0.94017505,113230.0,113220.0,1.72602186]
[1756369141524,0.98430505,113230.0,113220.0,1.72602186]
[1756369141724,1.08891505,113230.0,113220.0,1.72602186]
[1756369142428,1.1158508,113230.0,113220.0,0.86590741]
[1756369142623,1.1158508,113230.0,113220.0,1.23602186]
[1756369142927,1.1158508,113230.0,113220.0,1.49602186]
[1756369143523,1.0717208,113230.0,113220.0,1.49602186]
[1756369143724,1.1158508,113230.0,113220.0,1.49602186]
[1756369144728,1.1158508,113230.0,113220.0,1.12590741]
[1756369144928,1.1158508,113230.0,113220.0,1.49602186]
[1756369146029,1.1158508,113230.0,113220.0,1.12590741]
[1756369146229,1.1158508,113230.0,113220.0,1.49602186]
[1756369146931,1.1158508,113230.0,113220.0,0.39510741]
[1756369147132,1.4766508,113230.0,113220.0,0.39510741]
[1756369147330,1.4766508,113230.0,113220.0,1.10522186]
[1756369147728,1.4766508,113230.0,113220.0,0.73510741]
[1756369147929,1.4766508,113230.0,113220.0,1.10522186]
[1756369148730,1.4766508,113230.0,113220.0,0.73510741]
[1756369148731,1.4776508,113230.0,113220.0,0.73510741]
[1756369148931,1.4776508,113230.0,113220.0,0.26114581]
[1756369149126,1.84776525,113230.0,113220.0,0.19194581]
[1756369149332,1.84876525,113230.0,113220.0,0.13309581]
[1756369149529,1.84876525,113230.0,113220.0,0.09038581]
[1756369149732,1.4786508,113230.0,113220.0,0.09038581]
[1756369150733,1.4786508,113230.0,113220.0,0.17870351]
[1756369151734,1.4786508,113230.0,113220.0,0.22077351]
[1756369152635,1.84876525,113230.0,113220.0,0.04924581]
[1756369153831,1.4786508,113230.0,113220.0,0.04924581]
[1756369154033,1.4786508,113230.0,113220.0,0.24943351]
[1756369154234,1.4786508,113230.0,113220.0,0.32116351]
[1756369154436,1.4786508,113230.0,113220.0,0.38411351]
[1756369155130,1.4786508,113230.0,113220.0,0.75422796]
[1756369155533,1.4786508,113230.0,113220.0,0.69127796]
[1756369155830,1.4786508,113230.0,113220.0,0.04924581]
[1756369156030,1.3299108,113230.0,113210.0,0.96480821]
[1756369156226,0.17939,113220.0,113210.0,1.19198402]
[1756369156428,0.20632575,113220.0,113210.0,1.44198402]
[1756369156629,0.63987575,113220.0,113210.0,0.74186957]
[1756369156831,0.63987575,113220.0,113210.0,1.06662402]
[1756369157037,0.63987575,113220.0,113210.0,1.11198402]
[1756369157338,0.63987575,113220.0,113210.0,1.02365892]
[1756369157634,0.63987575,113220.0,113210.0,0.69650997]
[1756369157836,0.63987575,113220.0,113210.0,0.40367559]
[1756369158033,0.63987575,113220.0,113210.0,0.77379004]
[1756369158839,0.63987575,113220.0,113210.0,0.40367559]
[1756369159036,0.63987575,113220.0,113210.0,0.77379004]
[1756369159845,0.63987575,113220.0,113210.0,0.68546454]
[1756369160541,0.63987575,113220.0,113210.0,0.31535009]
[1756369160741,0.63987575,113220.0,113210.0,0.68546454]
[1756369161142,0.55220575,113220.0,113210.0,0.77379004]
[1756369161442,0.59883575,113220.0,113210.0,0.77379004]
[1756369161642,0.63987575,113220.0,113210.0,0.77379004]
[1756369162242,0.59883575,113220.0,113210.0,0.77379004]
[1756369162547,0.53362575,113220.0,113210.0,0.77379004]
[1756369162738,0.55220575,113220.0,113210.0,1.11379004]
[1756369162938,0.95071575,113220.0,113210.0,1.11379004]
[1756369163141,1.06255575,113220.0,113210.0,1.11379004]
[1756369163338,0.92420575,113220.0,113210.0,1.11379004]
[1756369163542,1.03604575,113220.0,113210.0,1.11379004]
[1756369164146,0.21152575,113220.0,113210.0,1.11379004]
[1756369164344,1.03604575,113220.0,113210.0,0.40367559]
[1756369164546,0.97083575,113220.0,113210.0,1.10379004]
[1756369164745,0.92420575,113220.0,113210.0,1.10379004]
[1756369165045,0.85141575,113220.0,113210.0,1.35379004]
[1756369165748,0.85141575,113220.0,113210.0,1.02379004]
[1756369165942,0.85141575,113220.0,113210.0,1.39379004]
[1756369166842,0.02693575,113220.0,113210.0,1.39379004]
[1756369167143,0.04169,113220.0,113210.0,1.39379004]
[1756369167344,0.06862575,113220.0,113210.0,1.39379004]
[1756369167747,0.23803575,113220.0,113210.0,1.02379004]
[1756369167938,0.23803575,113220.0,113210.0,1.39379004]
[1756369169045,0.14631575,113220.0,113210.0,1.39379004]
[1756369169346,0.21152575,113220.0,113210.0,1.39379004]
[1756369169747,0.21152575,113220.0,113210.0,1.02379004]
[1756369169942,0.21152575,113220.0,113210.0,1.34379004]
[1756369172750,0.21152575,113220.0,113210.0,1.10379004]
[1756369172945,0.21152575,113220.0,113210.0,1.37379004]
[1756369173142,0.14631575,113220.0,113210.0,1.37379004]
[1756369173346,0.02693575,113220.0,113210.0,1.37379004]
[1756369173548,1.50275776,113230.0,113220.0,0.24655]
[1756369173751,1.52997749,113230.0,113220.0,0.61666445]
[1756369174051,1.52977749,113230.0,113220.0,0.74591026]
[1756369174751,1.48973749,113230.0,113220.0,1.07422776]
[1756369174951,1.48314478,113230.0,113220.0,1.07422776]
[1756369175348,1.48314478,113230.0,113220.0,0.82422776]
[1756369175651,1.48314478,113230.0,113220.0,0.36579581]
[1756369175853,1.48314478,113230.0,113220.0,0.73591026]
[1756369176351,1.48414478,113230.0,113220.0,0.73591026]
[1756369178150,1.48414478,113230.0,113220.0,0.36579581]
[1756369179457,1.48414478,113230.0,113220.0,0.73591026]
[1756369181356,1.48414478,113230.0,113220.0,0.78307164]
[1756369182152,1.90142061,113230.0,113220.0,0.78307164]
[1756369182855,1.94905332,113230.0,113220.0,0.78307164]
[1756369184058,1.53177749,113230.0,113220.0,0.78307164]
[1756369184260,1.94905332,113230.0,113220.0,0.78307164]
[1756369184863,1.94905332,113230.0,113220.0,0.73382583]
[1756369185064,1.90142061,113230.0,113220.0,0.78307164]
[1756369185258,1.53177749,113230.0,113220.0,0.36579581]
[1756369185563,1.94905332,113230.0,113220.0,0.78307164]
[1756369186060,1.53177749,113230.0,113220.0,0.78307164]
[1756369186767,1.94905332,113230.0,113220.0,0.78307164]
[1756369186963,1.53177749,113230.0,113220.0,0.78307164]
[1756369187158,1.48414478,113230.0,113220.0,0.78307164]
[1756369188267,1.53177749,113230.0,113220.0,0.78307164]
[1756369189069,1.48414478,113230.0,113220.0,0.78307164]
[1756369191673,1.48414478,113230.0,113220.0,0.36579581]
[1756369191868,1.48414478,113230.0,113220.0,0.78307164]
[1756369193269,1.48414478,113230.0,113220.0,1.20034747]
[1756369193871,1.48414478,113230.0,113220.0,1.13034747]
[1756369194175,0.65986478,113230.0,113220.0,1.51034747]
[1756369194472,1.53137749,113230.0,113220.0,0.37579581]
[1756369194677,1.53137749,113230.0,113220.0,0.79307164]
[1756369194973,1.53137749,113230.0,113220.0,1.21034747]
[1756369195173,1.53137749,113230.0,113220.0,0.79307164]
[1756369195475,0.70749749,113230.0,113220.0,1.21034747]
[1756369195675,1.12949749,113230.0,113220.0,1.89946487]
[1756369196573,0.30565749,113230.0,113220.0,1.89946487]
[1756369196774,0.16730749,113230.0,113220.0,1.89946487]
[1756369196974,0.87076478,113230.0,113220.0,2.14946487]
[1756369197575,0.04692478,113230.0,113220.0,2.14946487]
[1756369198369,0.04592478,113230.0,113220.0,2.14946487]
[1756369198572,1.07536469,113250.0,113240.0,0.3309918]
[1756369198770,1.10151469,113250.0,113240.0,1.10826763]
[1756369198977,1.10151469,113250.0,113240.0,1.15751344]
[1756369199371,1.05364469,113250.0,113240.0,1.11093441]
[1756369199575,1.05384198,113250.0,113240.0,1.11093441]
[1756369199777,1.10147469,113250.0,113240.0,1.11093441]
[1756369200172,0.16495469,113250.0,113240.0,1.4323854]
[1756369200373,0.13880469,113250.0,113240.0,1.65243121]
[1756369200578,0.25156469,113250.0,113240.0,1.28173441]
[1756369200777,0.25156469,113250.0,113240.0,0.69023761]
[1756369200778,0.31733469,113250.0,113240.0,0.69023761]
[1756369200978,0.31733469,113250.0,113240.0,1.06093441]
[1756369201176,0.31833469,113250.0,113240.0,1.06093441]
[1756369201380,0.27871469,113250.0,113240.0,1.06093441]
[1756369201985,0.18763469,113250.0,113240.0,1.06093441]
[1756369202183,0.18763469,113250.0,113240.0,1.42173441]
[1756369202483,0.18863469,113250.0,113240.0,1.42173441]
[1756369203086,0.14100198,113250.0,113240.0,1.42173441]
[1756369203286,0.09317198,113250.0,113240.0,1.42173441]
[1756369203586,0.05048198,113250.0,113240.0,1.42173441]
[1756369204491,0.001,113250.0,113240.0,1.42173441]
[1756369204788,1.12716717,113260.0,113250.0,0.35056354]
[1756369204978,0.23851717,113260.0,113250.0,1.15050615]
[1756369205178,0.19068717,113260.0,113250.0,1.15050615]
[1756369205385,0.14899717,113260.0,113250.0,1.97406615]
[1756369205685,0.07898476,113260.0,113250.0,1.97406615]
[1756369206287,0.04763476,113260.0,113250.0,1.97406615]
[1756369206788,0.04863476,113260.0,113250.0,1.97406615]
[1756369207188,0.04863476,113260.0,113250.0,2.33486615]
[1756369207388,1.13765718,113270.0,113260.0,0.1839162]
[1756369207594,1.13765718,113270.0,113260.0,0.696963]
[1756369207793,1.16209718,113270.0,113260.0,0.74620881]
[1756369208199,1.20005718,113270.0,113260.0,0.74620881]
[1756369208691,1.20005718,113270.0,113260.0,0.82620881]
[1756369208890,1.20105718,113270.0,113260.0,0.82620881]
[1756369209088,1.20205718,113270.0,113260.0,0.82620881]
[1756369209986,1.20205718,113270.0,113260.0,0.45551201]
[1756369210187,1.20205718,113270.0,113260.0,0.61722581]
[1756369210496,1.22938524,113270.0,113260.0,0.36722581]
[1756369211798,1.96088204,113270.0,113260.0,0.12831581]
[1756369211994,1.69398524,113270.0,113250.0,0.20706624]
[1756369212195,0.23815,113260.0,113250.0,0.39509205]
[1756369212394,0.26547806,113260.0,113250.0,0.39509205]
[1756369212896,0.26547806,113260.0,113250.0,0.76578885]
[1756369213199,0.26547806,113260.0,113250.0,0.84578885]
[1756369213501,0.31311282,113260.0,113250.0,0.84578885]
[1756369213695,0.31311282,113260.0,113250.0,0.47509205]
[1756369214000,0.31311282,113260.0,113250.0,0.84578885]
[1756369214499,0.31311282,113260.0,113250.0,0.47509205]
[1756369214701,0.31311282,113260.0,113250.0,0.76578885]
[1756369215101,0.31311282,113260.0,113250.0,0.81578885]
[1756369216201,0.99697486,113260.0,113250.0,0.30680535]
[1756369216396,0.99697486,113260.0,113250.0,0.26365535]
[1756369216602,1.21333962,113260.0,113240.0,0.0992]
[1756369216802,1.06135,113250.0,113240.0,0.24407581]
[1756369216994,1.46730087,113250.0,113240.0,0.28722581]
[1756369217198,1.46730087,113250.0,113240.0,0.18249581]
[1756369217396,1.83799767,113250.0,113240.0,0.04924581]
[1756369217704,0.23815,113240.0,113230.0,0.25814178]
[1756369217902,0.99697486,113240.0,113230.0,0.30738759]
[1756369218100,0.62627806,113240.0,113230.0,0.30738759]
[1756369219101,0.62627806,113240.0,113230.0,0.30938759]
[1756369219602,0.62627806,113240.0,113230.0,0.20465759]
[1756369219903,0.62627806,113240.0,113230.0,0.15247759]
[1756369220402,0.62627806,113240.0,113230.0,0.20665759]
[1756369220604,0.62627806,113240.0,113230.0,0.31138759]
[1756369220807,0.62627806,113240.0,113230.0,0.39969719]
[1756369222910,0.62627806,113240.0,113230.0,0.39902719]
[1756369223405,0.62627806,113240.0,113230.0,0.31071759]
[1756369223605,0.62627806,113240.0,113230.0,0.26756759]
[1756369223910,0.99697486,113240.0,113230.0,0.17732759]
[1756369224505,0.99697486,113240.0,113230.0,0.10256178]
[1756369226610,0.62627806,113240.0,113230.0,0.10256178]
[1756369227010,0.62627806,113240.0,113230.0,0.21832178]
[1756369227211,0.62627806,113240.0,113230.0,0.34978138]
[1756369227915,0.62627806,113240.0,113230.0,0.39902719]
[1756369229418,0.62627806,113240.0,113230.0,0.31071759]
[1756369230620,0.99697486,113240.0,113230.0,0.20598759]
[1756369230915,0.99697486,113240.0,113230.0,0.15180759]
[1756369231113,0.99697486,113240.0,113230.0,0.02349178]
[1756369232621,0.99697486,113240.0,113230.0,0.02149178]
[1756369232821,0.99797486,113240.0,113230.0,0.02149178]
[1756369233018,1.39467486,113240.0,113230.0,0.002]
[1756369233223,1.44230962,113240.0,113230.0,0.002]
[1756369233518,1.44230962,113240.0,113220.0,0.0383]
[1756369233719,1.37856,113230.0,113220.0,0.0383]
[1756369234024,1.44919806,113230.0,113220.0,0.12899581]
[1756369234528,1.81989486,113230.0,113220.0,0.12899581]
[1756369235826,1.44919806,113230.0,113220.0,0.12899581]
[1756369236414,1.44919806,113230.0,113220.0,0.28860581]
[1756369236619,1.44919806,113230.0,113220.0,0.18486581]
[1756369236824,1.44919806,113230.0,113220.0,0.15451581]
[1756369237221,1.81989486,113230.0,113220.0,0.12899581]
[1756369238527,1.96659486,113230.0,113220.0,0.12899581]
[1756369238821,1.96659486,113230.0,113220.0,0.04992581]
[1756369239027,2.21659486,113230.0,113220.0,0.00068]
[1756369241032,2.26422962,113230.0,113220.0,0.00068]
[1756369242329,0.23254,113210.0,113200.0,0.24088]
[1756369242535,1.4611656,113210.0,113200.0,0.29012581]
[1756369242725,1.8318624,113210.0,113200.0,0.08725581]
[1756369243129,0.09737,113200.0,113190.0,0.16110639]
[1756369243329,0.62083748,113200.0,113190.0,0.0686022]
[1756369243636,0.62083748,113200.0,113190.0,0.1496722]
[1756369244030,0.98953428,113200.0,113190.0,0.1496722]
[1756369244431,0.98753428,113200.0,113190.0,0.1496722]
[1756369244630,0.98753428,113200.0,113190.0,0.0686022]
[1756369244828,0.98753428,113200.0,113190.0,0.0706022]
[1756369245335,0.98753428,113200.0,113190.0,0.0726022]
[1756369245536,0.98753428,113200.0,113190.0,0.1106122]
[1756369246037,1.05950574,113200.0,113190.0,0.1106122]
[1756369246239,1.05950574,113200.0,113190.0,0.05324581]
[1756369246440,0.98753428,113200.0,113190.0,0.05324581]
[1756369246934,0.98753428,113200.0,113190.0,0.13431581]
[1756369247140,0.98753428,113200.0,113190.0,0.29412581]
[1756369247835,0.61683748,113200.0,113190.0,0.29412581]
[1756369248041,1.43959748,113200.0,113190.0,0.29412581]
[1756369248535,0.61683748,113200.0,113190.0,0.75316341]
[1756369248743,1.43955748,113200.0,113190.0,1.32316341]
[1756369249036,1.43955748,113200.0,113190.0,1.33316341]
[1756369249339,0.61683748,113200.0,113190.0,0.54412581]
[1756369249536,1.07879748,113200.0,113190.0,0.91482261]
[1756369249843,1.07875748,113200.0,113190.0,0.91482261]
[1756369250237,0.25603748,113200.0,113190.0,0.91482261]
[1756369250433,0.25603748,113200.0,113190.0,1.13316341]
[1756369250640,0.91497,113200.0,113190.0,0.74326661]
[1756369250839,0.95789,113200.0,113190.0,1.12316341]
[1756369251042,1.09126945,113200.0,113190.0,1.07316341]
[1756369251346,0.25019754,113210.0,113200.0,0.24088]
[1756369251637,1.46117655,113210.0,113200.0,0.24088]
[1756369251842,1.46117655,113210.0,113200.0,0.29012581]
[1756369253144,1.46117655,113210.0,113200.0,0.24745581]
[1756369253346,1.83187335,113210.0,113200.0,0.13031581]
[1756369253959,1.83187335,113210.0,113200.0,0.04924581]
[1756369254145,1.46117655,113210.0,113200.0,0.13031581]
[1756369254439,0.17133,113200.0,113190.0,0.14214]
[1756369254646,0.59334,113200.0,113190.0,0.18638581]
[1756369254841,0.59334,113200.0,113190.0,0.22905581]
[1756369255045,0.59334,113200.0,113190.0,0.29012581]
[1756369255338,0.59334,113200.0,113190.0,0.15603581]
[1756369255339,0.62080006,113200.0,113190.0,0.15603581]
[1756369255647,0.59334,113200.0,113190.0,0.15703581]
[1756369256041,0.6208005,113200.0,113190.0,0.15703581]
[1756369256447,0.6208005,113200.0,113190.0,0.18738581]
[1756369256646,0.6208005,113200.0,113190.0,0.29112581]
[1756369256846,0.6208005,113200.0,113190.0,0.15803581]
[1756369257041,0.9914973,113200.0,113190.0,0.13231581]
[1756369257443,0.6208005,113200.0,113190.0,0.13231581]
[1756369257642,0.9914973,113200.0,113190.0,0.13231581]
[1756369258046,0.9914973,113200.0,113190.0,0.05124581]
[1756369258242,0.9914973,113200.0,113190.0,0.002]
[1756369258949,0.9914973,113200.0,113190.0,0.05124581]
[1756369259341,1.2414973,113200.0,113190.0,0.002]
[1756369259947,1.2414973,113200.0,113190.0,0.001]
[1756369260247,1.2424973,113200.0,113190.0,0.001]
[1756369260443,0.14029,113190.0,113180.0,0.24088]
[1756369260643,1.41594,113190.0,113180.0,0.29012581]
[1756369261045,1.43399413,113190.0,113180.0,0.29012581]
[1756369261442,1.43399413,113190.0,113180.0,0.24745581]
[1756369261640,1.43399413,113190.0,113180.0,0.15603581]
[1756369261845,1.43399413,113190.0,113180.0,0.13031581]
[1756369262349,1.83217338,113190.0,113180.0,0.13031581]
[1756369263549,1.46147658,113190.0,113180.0,0.13031581]
[1756369264853,1.46147658,113190.0,113180.0,0.29012581]
[1756369265350,1.46147658,113190.0,113180.0,0.37847441]
[1756369265555,1.42455658,113190.0,113180.0,1.10917121]
[1756369265850,1.25687658,113190.0,113180.0,1.35917121]
[1756369266349,0.86809658,113190.0,113180.0,1.71997121]
[1756369266658,0.86809658,113190.0,113180.0,1.70997121]
[1756369267154,0.84061413,113190.0,113180.0,1.70997121]
[1756369267353,0.84061413,113190.0,113180.0,0.98927441]
[1756369267545,0.95303413,113190.0,113180.0,1.68997121]
[1756369267751,1.10361035,113190.0,113180.0,1.71997121]
[1756369268257,1.10361035,113190.0,113180.0,1.10997121]
[1756369268452,1.10361035,113190.0,113180.0,0.73927441]
[1756369268754,1.10361035,113190.0,113180.0,0.29012581]
[1756369269644,1.46441035,113190.0,113180.0,0.29012581]
[1756369270248,1.46441035,113190.0,113180.0,0.37847441]
[1756369270856,1.46441035,113190.0,113180.0,1.07917121]
[1756369272459,0.50039035,113190.0,113180.0,1.07917121]
[1756369272754,1.34134035,113190.0,113180.0,1.07917121]
[1756369273058,1.40375035,113190.0,113180.0,1.07917121]
[1756369273258,1.40375035,113190.0,113180.0,1.43997121]
[1756369273259,1.04295035,113190.0,113180.0,1.43997121]
[1756369273654,1.04295035,113190.0,113180.0,1.20997121]
[1756369273849,1.04295035,113190.0,113180.0,1.07917121]
[1756369274252,1.07980035,113190.0,113180.0,0.50101261]
[1756369274455,1.46441035,113190.0,113180.0,0.08725581]
[1756369274652,1.10361035,113190.0,113180.0,0.27149441]
[1756369274853,1.10361035,113190.0,113180.0,0.74811121]
[1756369275356,1.10361035,113190.0,113180.0,1.05811121]
[1756369277863,1.06676035,113190.0,113180.0,1.41891121]
[1756369278164,1.06682626,113190.0,113180.0,1.41891121]
[1756369279055,1.10367626,113190.0,113180.0,1.41891121]
[1756369279265,1.06682626,113190.0,113180.0,1.41891121]
[1756369279660,1.00441626,113190.0,113180.0,1.41891121]
[1756369279857,0.96221626,113190.0,113180.0,1.66891121]
[1756369280054,1.00441626,113190.0,113180.0,1.66891121]
[1756369280560,1.06682626,113190.0,113180.0,1.66891121]
[1756369280871,1.06682626,113190.0,113180.0,1.68891121]
[1756369281163,0.22049626,113190.0,113180.0,1.68891121]
[1756369281361,0.89627626,113190.0,113180.0,1.68891121]
[1756369281562,0.86866413,113190.0,113180.0,1.68891121]
[1756369282367,0.91086413,113190.0,113180.0,1.68891121]
[1756369282566,0.91086413,113190.0,113180.0,1.73891121]
[1756369282865,0.97327413,113190.0,113180.0,1.73891121]
[1756369283269,0.15079413,113190.0,113180.0,1.35891121]
[1756369283470,0.15079413,113190.0,113180.0,1.67891121]
[1756369283670,0.15079413,113190.0,113180.0,1.00821441]
[1756369283875,0.15079413,113190.0,113180.0,1.66891121]
[1756369285171,0.15079413,113190.0,113180.0,2.49135121]
[1756369286671,0.01805413,113190.0,113180.0,2.49135121]
[1756369288678,0.06025413,113190.0,113180.0,2.49135121]
[1756369289171,0.08834574,113190.0,113180.0,2.49135121]
[1756369289372,0.15075574,113190.0,113180.0,2.49135121]
[1756369291680,0.08834574,113190.0,113180.0,2.49135121]
[1756369292183,0.08834574,113190.0,113180.0,2.18135121]
[1756369292386,0.15075574,113190.0,113180.0,2.15065441]
[1756369292683,0.08834574,113190.0,113180.0,2.55135121]
[1756369293670,0.01805413,113190.0,113180.0,2.33135121]
[1756369293884,0.01805413,113190.0,113180.0,2.51135121]
[1756369294087,0.01805413,113190.0,113180.0,2.26135121]
[1756369294581,0.01805413,113190.0,113180.0,2.51135121]
[1756369296379,0.01805413,113190.0,113180.0,2.51335121]
[1756369297683,0.01805413,113190.0,113180.0,2.14265441]
[1756369297880,0.01805413,113190.0,113180.0,2.51335121]
[1756369298484,0.01805413,113190.0,113180.0,1.69091121]
[1756369298683,0.01805413,113190.0,113180.0,2.51311121]
[1756369299180,0.06054413,113190.0,113180.0,2.51311121]
[1756369299686,0.06054413,113190.0,113180.0,2.14241441]
[1756369299879,0.01805413,113190.0,113180.0,2.26311121]
[1756369300080,0.06054413,113190.0,113180.0,2.26311121]
[1756369300786,0.06054413,113190.0,113180.0,1.89241441]
[1756369300985,0.06054413,113190.0,113180.0,2.26311121]
[1756369301384,0.24209057,113210.0,113200.0,0.3191929]
[1756369301684,0.27019781,113210.0,113200.0,1.4003799]
[1756369301886,0.27019781,113210.0,113200.0,1.11962571]
[1756369302088,0.27019781,113210.0,113200.0,1.44962571]
[1756369302289,0.30521781,113210.0,113200.0,0.38812891]
[1756369302587,0.92791461,113210.0,113200.0,0.2118931]
[1756369302788,0.92791461,113210.0,113200.0,0.1440831]
[1756369302989,0.92791461,113210.0,113200.0,0.2118931]
[1756369303292,0.97040461,113210.0,113200.0,0.2543831]
[1756369303492,0.59970781,113210.0,113200.0,1.0595799]
[1756369303987,0.27219781,113210.0,113200.0,1.46962571]
[1756369304489,0.18474781,113210.0,113200.0,1.46962571]
[1756369305290,0.18374781,113210.0,113200.0,1.46962571]
[1756369305488,0.18274781,113210.0,113200.0,1.46962571]
[1756369305690,0.28788781,113210.0,113200.0,1.46962571]
[1756369306295,0.28788781,113210.0,113200.0,1.11962571]
[1756369306492,0.28788781,113210.0,113200.0,1.49962571]
[1756369307496,0.31268781,113210.0,113200.0,0.74892891]
[1756369307697,0.34770781,113210.0,113200.0,1.11962571]
[1756369308997,0.34870781,113210.0,113200.0,1.11962571]
[1756369309190,0.34970781,113210.0,113200.0,1.11962571]
[1756369312104,0.34970781,113210.0,113200.0,1.0703799]
[1756369312302,0.34970781,113210.0,113200.0,1.11962571]
[1756369312799,0.31468781,113210.0,113200.0,1.11962571]
[1756369313102,0.28988781,113210.0,113200.0,1.09674571]
[1756369314003,0.31468781,113210.0,113200.0,0.74892891]
[1756369314199,0.31468781,113210.0,113200.0,1.43962571]
[1756369314605,0.31468781,113210.0,113200.0,1.11962571]
[1756369315105,0.31468781,113210.0,113200.0,1.44962571]
[1756369315802,0.34970781,113210.0,113200.0,1.44962571]
[1756369316708,0.34970781,113210.0,113200.0,0.74892891]
[1756369318108,0.72040461,113210.0,113200.0,0.74892891]
[1756369318608,0.34970781,113210.0,113200.0,0.74892891]
[1756369320108,0.34970781,113210.0,113200.0,0.38812891]
[1756369327219,0.34970781,113210.0,113200.0,0.75882571]
[1756369327417,0.34970781,113210.0,113200.0,0.38812891]
[1756369328219,0.31497781,113210.0,113200.0,0.38812891]
[1756369328519,0.27219781,113210.0,113200.0,0.75882571]
[1756369328812,0.18474781,113210.0,113200.0,0.75882571]
[1756369329319,0.18474781,113210.0,113200.0,0.74892891]
[1756369329519,0.18474781,113210.0,113200.0,1.43962571]
[1756369329721,0.18474781,113210.0,113200.0,1.48962571]
[1756369331923,0.28436781,113210.0,113200.0,1.11962571]
[1756369334426,0.18474781,113210.0,113200.0,1.11962571]
[1756369336026,0.15696781,113210.0,113200.0,1.11962571]
[1756369337226,0.15696781,113210.0,113200.0,1.0703799]
[1756369337426,0.15696781,113210.0,113200.0,1.11962571]
[1756369337924,0.25658781,113210.0,113200.0,1.11962571]
[1756369338827,0.30758781,113210.0,113200.0,0.74892891]
[1756369339828,0.34372781,113210.0,113200.0,0.74892891]
[1756369341031,0.30758781,113210.0,113200.0,0.74892891]
[1756369344232,0.30758781,113210.0,113200.0,0.6996831]
[1756369344428,0.30758781,113210.0,113200.0,0.74892891]
[1756369345032,0.34372781,113210.0,113200.0,0.74892891]
[1756369345926,0.30758781,113210.0,113200.0,0.74892891]
[1756369347131,0.30758781,113210.0,113200.0,1.11962571]
[1756369347623,0.34372781,113210.0,113200.0,0.74892891]
[1756369347826,0.34372781,113210.0,113200.0,0.38812891]
[1756369348025,0.71442461,113210.0,113200.0,0.3388831]
[1756369348429,1.47192461,113210.0,113200.0,0.12675]
[1756369348630,1.51955937,113210.0,113200.0,0.03606]
[1756369348830,1.51955937,113210.0,113190.0,0.1874956]
[1756369349135,1.4166568,113200.0,113190.0,0.3162056]
[1756369349334,1.80556404,113200.0,113190.0,0.3162056]
[1756369351536,1.43486724,113200.0,113190.0,0.3162056]
[1756369351837,1.07406724,113200.0,113190.0,0.3162056]
[1756369352735,1.43486724,113200.0,113190.0,0.3162056]
[1756369352932,1.80556404,113200.0,113190.0,0.1230056]
[1756369353140,1.80556404,113200.0,113190.0,0.3162056]
[1756369353442,1.43486724,113200.0,113190.0,0.3162056]
[1756369354036,1.43486724,113200.0,113190.0,0.36545141]
[1756369354231,1.80556404,113200.0,113190.0,0.36545141]
[1756369355242,1.89389704,113200.0,113190.0,0.36545141]
[1756369356238,1.52320024,113200.0,113190.0,0.36545141]
[1756369356742,1.07406724,113200.0,113190.0,0.36545141]
[1756369358145,1.16240024,113200.0,113190.0,0.36545141]
[1756369358438,1.52320024,113200.0,113190.0,0.36545141]
[1756369358646,1.495093,113200.0,113190.0,0.36545141]
[1756369358944,1.52390771,113200.0,113190.0,0.36545141]
[1756369363145,2.04130451,113200.0,113190.0,0.12871]
[1756369363346,2.04130451,113200.0,113190.0,0.03467]
[1756369363649,1.90554451,113200.0,113180.0,0.2257931]
[1756369363952,0.21863,113190.0,113180.0,0.36399891]
[1756369364245,0.24744471,113190.0,113180.0,0.36399891]
[1756369364947,0.24744471,113190.0,113180.0,0.36499891]
[1756369365145,0.24744471,113190.0,113180.0,0.36599891]
[1756369365742,0.24744471,113190.0,113180.0,0.36399891]
[1756369365945,0.24744471,113190.0,113180.0,0.36599891]
[1756369366446,0.24744471,113190.0,113180.0,0.32532891]
[1756369366642,0.24744471,113190.0,113180.0,0.36599891]
[1756369366849,0.97894151,113190.0,113180.0,0.26487891]
[1756369367047,0.97894151,113190.0,113180.0,0.30554891]
[1756369367251,0.99028089,113190.0,113180.0,0.30554891]
[1756369368046,0.99028089,113190.0,113180.0,0.26487891]
[1756369368249,0.99028089,113190.0,113180.0,0.17653581]
[1756369369645,0.99028089,113190.0,113180.0,0.12801581]
[1756369369851,0.99028089,113190.0,113180.0,0.08757581]
[1756369370051,0.99028089,113190.0,113180.0,0.15375581]
[1756369370251,0.61958409,113190.0,113180.0,0.15375581]
[1756369370452,0.99028089,113190.0,113180.0,0.15375581]
[1756369370652,0.99028089,113190.0,113180.0,0.10451]
[1756369370853,0.99028089,113190.0,113180.0,0.03833]
[1756369372550,0.61958409,113190.0,113180.0,0.07877]